[Event "Titled Tuesday Blitz June 21 Late 2022"]
[White "Jaracz, Pawel"]
[Black "Richter, Nils"]
[WhiteFideId "1102222"]
[BlackFideId "12990809"]
[WhiteElo "2459"]
[BlackElo "2311"]
[Result "1-0"]
[Round "04"]
[TimeControl "180+1"]
[Date "2022.06.22"]
[WhiteClock "0:00:17"]
[BlackClock "0:00:02"]

1. d4 {[%clk 0:02:55]}  Nf6 {[%clk 0:02:59]} 2. c4 {[%clk 0:02:55]}  c5 {[%clk 0:02:59]} 3. Nf3 {[%clk 0:02:51]}  cxd4 {[%clk 0:02:58]} 4. Nxd4 {[%clk 0:02:51]}  e6 {[%clk 0:02:58]} 5. g3 {[%clk 0:02:49]}  d5 {[%clk 0:02:45]} 6. Bg2 {[%clk 0:02:49]}  dxc4 {[%clk 0:02:44]} 7. Qa4+ {[%clk 0:02:38]}  Nbd7 {[%clk 0:02:40]} 8. O-O {[%clk 0:02:34]}  Bc5 {[%clk 0:02:33]} 9. Rd1 {[%clk 0:02:28]}  O-O {[%clk 0:02:32]} 10. Qxc4 {[%clk 0:02:25]}  Qe7 {[%clk 0:02:32]} 11. Nc3 {[%clk 0:02:21]}  Nb6 {[%clk 0:02:25]} 12. Qb3 {[%clk 0:02:16]}  e5 {[%clk 0:02:23]} 13. Nf3 {[%clk 0:02:05]}  Be6 {[%clk 0:02:22]} 14. Qc2 {[%clk 0:02:01]}  Nbd5 {[%clk 0:01:46]} 15. Ng5 {[%clk 0:01:50]}  Nb4 {[%clk 0:01:45]} 16. Qb1 {[%clk 0:01:49]}  Bg4 {[%clk 0:01:34]} 17. a3 {[%clk 0:01:45]}  h6 {[%clk 0:01:17]} 18. axb4 {[%clk 0:01:44]}  Bxf2+ {[%clk 0:01:17]} 19. Kxf2 {[%clk 0:01:43]}  hxg5 {[%clk 0:01:17]} 20. Bxg5 {[%clk 0:01:40]}  Qxb4 {[%clk 0:01:13]} 21. Bxf6 {[%clk 0:01:38]}  gxf6 {[%clk 0:01:14]} 22. Qe4 {[%clk 0:01:33]}  Qb6+ {[%clk 0:01:09]} 23. Qe3 {[%clk 0:01:32]}  Qxb2 {[%clk 0:01:03]} 24. Nd5 {[%clk 0:01:24]}  Kg7 {[%clk 0:01:01]} 25. Qe4 {[%clk 0:00:58]}  f5 {[%clk 0:00:48]} 26. Qe3 {[%clk 0:00:47]}  f6 {[%clk 0:00:44]} 27. Rab1 {[%clk 0:00:44]}  Qa2 {[%clk 0:00:39]} 28. Rxb7+ {[%clk 0:00:44]}  Rf7 {[%clk 0:00:40]} 29. Rxf7+ {[%clk 0:00:37]}  Kxf7 {[%clk 0:00:41]} 30. Nb4 {[%clk 0:00:37]}  f4 {[%clk 0:00:31]} 31. Qe4 {[%clk 0:00:33]}  Qxe2+ {[%clk 0:00:22]} 32. Qxe2 {[%clk 0:00:32]}  Bxe2 {[%clk 0:00:23]} 33. Kxe2 {[%clk 0:00:32]}  Rh8 {[%clk 0:00:24]} 34. Rd7+ {[%clk 0:00:31]}  Ke6 {[%clk 0:00:22]} 35. Rxa7 {[%clk 0:00:28]}  Rxh2 {[%clk 0:00:21]} 36. Kf1 {[%clk 0:00:27]}  fxg3 {[%clk 0:00:20]} 37. Ra6+ {[%clk 0:00:26]}  Kf5 {[%clk 0:00:16]} 38. Nd5 {[%clk 0:00:27]}  Rh6 {[%clk 0:00:15]} 39. Ke2 {[%clk 0:00:25]}  Kg5 {[%clk 0:00:13]} 40. Kf3 {[%clk 0:00:24]}  f5 {[%clk 0:00:03]} 41. Ra8 {[%clk 0:00:23]}  Rd6 {[%clk 0:00:01]} 42. Rg8+ {[%clk 0:00:22]}  Kh6 {[%clk 0:00:01]} 43. Kxg3 {[%clk 0:00:22]}  e4 {[%clk 0:00:02]} 44. Nf4 {[%clk 0:00:21]}  Rd2 {[%clk 0:00:01]} 45. Rf8 {[%clk 0:00:19]}  Kh7 {[%clk 0:00:02]} 46. Rxf5 {[%clk 0:00:19]}  e3 {[%clk 0:00:03]} 47. Re5 {[%clk 0:00:19]}  Ra2 {[%clk 0:00:03]} 48. Rxe3 {[%clk 0:00:18]}  Rb2 {[%clk 0:00:03]} 49. Bf3 {[%clk 0:00:18]}  Rb8 {[%clk 0:00:04]} 50. Re6 {[%clk 0:00:18]}  Kg7 {[%clk 0:00:04]} 51. Kg4 {[%clk 0:00:18]}  Kf7 {[%clk 0:00:04]} 52. Ra6 {[%clk 0:00:18]}  Rb4 {[%clk 0:00:03]} 53. Bd5+ {[%clk 0:00:17]}  Ke7 {[%clk 0:00:03]} 54. Kf5 {[%clk 0:00:18]}  Rb1 {[%clk 0:00:03]} 55. Re6+ {[%clk 0:00:17]}  Kd7 {[%clk 0:00:03]} 56. Rh6 {[%clk 0:00:16]}  Rf1 {[%clk 0:00:03]} 57. Ke5 {[%clk 0:00:16]}  Re1+ {[%clk 0:00:02]} 58. Be4 {[%clk 0:00:16]}  Kc7 {[%clk 0:00:03]} 59. Rh7+ {[%clk 0:00:16]}  Kb6 {[%clk 0:00:03]} 60. Nd5+ {[%clk 0:00:17]}  Kc5 {[%clk 0:00:03]} 61. Rc7+ {[%clk 0:00:17]}  Kb5 {[%clk 0:00:02]} 62. Kd4 {[%clk 0:00:17]} 1-0


[Site "https://www.chess.com"]

[Event "Titled Tuesday Blitz June 21 Late 2022"]
[White "Jian, Alex"]
[Black "Quirke, Jeffrey"]
[WhiteFideId "30901022"]
[BlackFideId "2013029"]
[WhiteElo "2111"]
[BlackElo "2196"]
[Result "1-0"]
[Round "04"]
[TimeControl "180+1"]
[Date "2022.06.22"]
[WhiteClock "0:00:07"]
[BlackClock "0:00:17"]

1. d4 {[%clk 0:02:49]}  d5 {[%clk 0:02:58]} 2. c4 {[%clk 0:02:49]}  e6 {[%clk 0:02:58]} 3. Nc3 {[%clk 0:02:49]}  Nf6 {[%clk 0:02:51]} 4. cxd5 {[%clk 0:02:49]}  Nxd5 {[%clk 0:02:51]} 5. e4 {[%clk 0:02:49]}  Nxc3 {[%clk 0:02:50]} 6. bxc3 {[%clk 0:02:49]}  c5 {[%clk 0:02:51]} 7. Rb1 {[%clk 0:02:49]}  Be7 {[%clk 0:02:50]} 8. Nf3 {[%clk 0:02:48]}  O-O {[%clk 0:02:50]} 9. Bd3 {[%clk 0:02:38]}  Nc6 {[%clk 0:02:45]} 10. d5 {[%clk 0:02:23]}  Na5 {[%clk 0:02:38]} 11. O-O {[%clk 0:02:21]}  b6 {[%clk 0:02:31]} 12. c4 {[%clk 0:02:20]}  exd5 {[%clk 0:02:22]} 13. cxd5 {[%clk 0:02:11]}  Bg4 {[%clk 0:02:14]} 14. Bb2 {[%clk 0:02:04]}  f6 {[%clk 0:01:49]} 15. h3 {[%clk 0:01:49]}  Bh5 {[%clk 0:01:48]} 16. Be2 {[%clk 0:01:31]}  Bd6 {[%clk 0:01:46]} 17. Re1 {[%clk 0:01:16]}  Qc7 {[%clk 0:01:40]} 18. Nd2 {[%clk 0:00:56]}  Bg6 {[%clk 0:01:27]} 19. Bg4 {[%clk 0:00:47]}  Rae8 {[%clk 0:01:26]} 20. Be6+ {[%clk 0:00:45]}  Bf7 {[%clk 0:01:26]} 21. Bxf7+ {[%clk 0:00:41]}  Rxf7 {[%clk 0:01:26]} 22. Bc3 {[%clk 0:00:36]}  Rfe7 {[%clk 0:01:09]} 23. Bxa5 {[%clk 0:00:28]}  bxa5 {[%clk 0:01:10]} 24. Qc2 {[%clk 0:00:28]}  f5 {[%clk 0:01:07]} 25. f3 {[%clk 0:00:22]}  Bf4 {[%clk 0:00:54]} 26. Nc4 {[%clk 0:00:19]}  fxe4 {[%clk 0:00:49]} 27. fxe4 {[%clk 0:00:19]}  Be5 {[%clk 0:00:43]} 28. Kh1 {[%clk 0:00:14]}  Rf7 {[%clk 0:00:37]} 29. Rbd1 {[%clk 0:00:13]}  Qe7 {[%clk 0:00:33]} 30. d6 {[%clk 0:00:11]}  Qg5 {[%clk 0:00:31]} 31. Nxe5 {[%clk 0:00:10]}  Qxe5 {[%clk 0:00:30]} 32. Qc4 {[%clk 0:00:08]}  Rd8 {[%clk 0:00:19]} 33. Rf1 {[%clk 0:00:08]}  Rd7 {[%clk 0:00:18]} 34. Rxf7 {[%clk 0:00:07]}  Rxf7 {[%clk 0:00:17]} 35. d7 {[%clk 0:00:07]} 1-0


[Site "https://www.chess.com"]

[Event "Titled Tuesday Blitz June 21 Late 2022"]
[White "Jiganchine, Roman"]
[Black "Mei, Austin"]
[WhiteFideId "2603667"]
[BlackFideId "30948479"]
[WhiteElo "2213"]
[BlackElo "1936"]
[Result "0-1"]
[Round "04"]
[TimeControl "180+1"]
[Date "2022.06.22"]
[WhiteClock "0:00:18"]
[BlackClock "0:00:52"]

1. Nf3 {[%clk 0:03:00]}  f5 {[%clk 0:02:59]} 2. d3 {[%clk 0:02:57]}  Nc6 {[%clk 0:02:59]} 3. e4 {[%clk 0:02:56]}  e5 {[%clk 0:03:00]} 4. Nc3 {[%clk 0:02:51]}  Nf6 {[%clk 0:02:59]} 5. exf5 {[%clk 0:02:49]}  d5 {[%clk 0:02:59]} 6. d4 {[%clk 0:02:49]}  exd4 {[%clk 0:02:54]} 7. Nxd4 {[%clk 0:02:48]}  Nxd4 {[%clk 0:02:55]} 8. Qxd4 {[%clk 0:02:48]}  Bxf5 {[%clk 0:02:54]} 9. Bg5 {[%clk 0:02:43]}  Bxc2 {[%clk 0:02:44]} 10. Bb5+ {[%clk 0:02:22]}  c6 {[%clk 0:02:44]} 11. O-O {[%clk 0:02:21]}  Be7 {[%clk 0:02:43]} 12. Bxf6 {[%clk 0:02:15]}  Bxf6 {[%clk 0:02:40]} 13. Rfe1+ {[%clk 0:02:14]}  Kf7 {[%clk 0:02:40]} 14. Qd2 {[%clk 0:01:18]}  Bf5 {[%clk 0:02:40]} 15. Bd3 {[%clk 0:01:17]}  Qd7 {[%clk 0:02:38]} 16. Rad1 {[%clk 0:01:13]}  Rhe8 {[%clk 0:02:33]} 17. Rxe8 {[%clk 0:01:07]}  Rxe8 {[%clk 0:02:33]} 18. h3 {[%clk 0:01:07]}  Bxd3 {[%clk 0:02:22]} 19. Qxd3 {[%clk 0:01:07]}  Kg8 {[%clk 0:02:21]} 20. Ne2 {[%clk 0:01:00]}  Qe6 {[%clk 0:02:14]} 21. Ng3 {[%clk 0:01:00]}  g6 {[%clk 0:02:10]} 22. b4 {[%clk 0:00:59]}  b6 {[%clk 0:01:47]} 23. Qa6 {[%clk 0:00:56]}  Qe7 {[%clk 0:01:32]} 24. Rc1 {[%clk 0:00:55]}  c5 {[%clk 0:01:29]} 25. bxc5 {[%clk 0:00:49]}  bxc5 {[%clk 0:01:30]} 26. Qc6 {[%clk 0:00:48]}  d4 {[%clk 0:01:18]} 27. Rxc5 {[%clk 0:00:46]}  Rd8 {[%clk 0:01:05]} 28. Rd5 {[%clk 0:00:44]}  Rxd5 {[%clk 0:01:01]} 29. Qxd5+ {[%clk 0:00:43]}  Qf7 {[%clk 0:01:02]} 30. Qa8+ {[%clk 0:00:41]}  Kg7 {[%clk 0:01:01]} 31. Qe4 {[%clk 0:00:41]}  Qxa2 {[%clk 0:01:00]} 32. Qb7+ {[%clk 0:00:37]}  Qf7 {[%clk 0:01:01]} 33. Qe4 {[%clk 0:00:38]}  Qd7 {[%clk 0:01:00]} 34. h4 {[%clk 0:00:37]}  d3 {[%clk 0:00:59]} 35. Qe1 {[%clk 0:00:22]}  d2 {[%clk 0:00:59]} 36. Qd1 {[%clk 0:00:22]}  Bc3 {[%clk 0:00:55]} 37. Ne4 {[%clk 0:00:21]}  Qd3 {[%clk 0:00:52]} 38. Nxc3 {[%clk 0:00:19]}  Qxc3 {[%clk 0:00:53]} 39. h5 {[%clk 0:00:18]}  Qc1 {[%clk 0:00:52]} 0-1


[Site "https://www.chess.com"]

[Event "Titled Tuesday Blitz June 21 Late 2022"]
[White "Kadric, Denis"]
[Black "Zlatin, Alexander"]
[WhiteFideId "14403803"]
[BlackFideId "2810549"]
[WhiteElo "2657"]
[BlackElo "2228"]
[Result "0-1"]
[Round "04"]
[TimeControl "180+1"]
[Date "2022.06.21"]
[WhiteClock "0:00:09"]
[BlackClock "0:00:12"]

1. e4 {[%clk 0:03:00]}  e5 {[%clk 0:02:59]} 2. Nf3 {[%clk 0:02:59]}  Nc6 {[%clk 0:03:00]} 3. Nc3 {[%clk 0:02:59]}  Nf6 {[%clk 0:03:00]} 4. Bb5 {[%clk 0:03:00]}  Bb4 {[%clk 0:03:00]} 5. O-O {[%clk 0:02:57]}  O-O {[%clk 0:03:00]} 6. d3 {[%clk 0:02:58]}  Bxc3 {[%clk 0:02:58]} 7. bxc3 {[%clk 0:02:58]}  d6 {[%clk 0:02:58]} 8. Bg5 {[%clk 0:02:59]}  Qe7 {[%clk 0:02:58]} 9. Re1 {[%clk 0:02:58]}  Nd8 {[%clk 0:02:57]} 10. d4 {[%clk 0:02:59]}  Ne6 {[%clk 0:02:57]} 11. Bc1 {[%clk 0:02:57]}  c6 {[%clk 0:02:22]} 12. Bd3 {[%clk 0:02:56]}  Qc7 {[%clk 0:02:22]} 13. h3 {[%clk 0:02:53]}  h6 {[%clk 0:02:20]} 14. Be3 {[%clk 0:02:51]}  Rd8 {[%clk 0:02:20]} 15. Nh4 {[%clk 0:02:51]}  exd4 {[%clk 0:02:09]} 16. cxd4 {[%clk 0:02:50]}  c5 {[%clk 0:02:07]} 17. c3 {[%clk 0:02:49]}  c4 {[%clk 0:01:43]} 18. Bc2 {[%clk 0:02:49]}  d5 {[%clk 0:01:39]} 19. f3 {[%clk 0:02:28]}  b5 {[%clk 0:01:06]} 20. e5 {[%clk 0:02:25]}  Nh5 {[%clk 0:01:02]} 21. Qd2 {[%clk 0:02:22]}  g5 {[%clk 0:00:56]} 22. Nf5 {[%clk 0:02:20]}  Nef4 {[%clk 0:00:52]} 23. Nxh6+ {[%clk 0:02:15]}  Kg7 {[%clk 0:00:53]} 24. Ng4 {[%clk 0:02:15]}  b4 {[%clk 0:00:41]} 25. cxb4 {[%clk 0:02:10]}  c3 {[%clk 0:00:41]} 26. Qc1 {[%clk 0:02:01]}  a5 {[%clk 0:00:40]} 27. bxa5 {[%clk 0:01:58]}  Rxa5 {[%clk 0:00:41]} 28. h4 {[%clk 0:01:58]}  Qe7 {[%clk 0:00:34]} 29. Nf6 {[%clk 0:01:35]}  Nxf6 {[%clk 0:00:29]} 30. exf6+ {[%clk 0:01:30]}  Qxf6 {[%clk 0:00:28]} 31. hxg5 {[%clk 0:01:30]}  Nh3+ {[%clk 0:00:24]} 32. gxh3 {[%clk 0:01:31]}  Qxf3 {[%clk 0:00:22]} 33. g6 {[%clk 0:00:07]}  Qg3+ {[%clk 0:00:20]} 34. Kf1 {[%clk 0:00:07]}  Bxh3+ {[%clk 0:00:16]} 35. Ke2 {[%clk 0:00:08]}  Bg4+ {[%clk 0:00:14]} 36. Kd3 {[%clk 0:00:09]}  Bf5+ {[%clk 0:00:14]} 37. Kxc3 {[%clk 0:00:09]}  Rc8+ {[%clk 0:00:13]} 38. Kb4 {[%clk 0:00:10]}  Qd6+ {[%clk 0:00:11]} 39. Kxa5 {[%clk 0:00:09]}  Ra8+ {[%clk 0:00:12]} 40. Kb5 {[%clk 0:00:09]}  Bd7# {[%clk 0:00:12]} 0-1


[Site "https://www.chess.com"]

[Event "Titled Tuesday Blitz June 21 Late 2022"]
[White "Kamsky, Gata"]
[Black "Sohal, Tanraj"]
[WhiteFideId "2000024"]
[BlackFideId "2608499"]
[WhiteElo "2645"]
[BlackElo "2200"]
[Result "1/2-1/2"]
[Round "04"]
[TimeControl "180+1"]
[Date "2022.06.21"]
[WhiteClock "0:00:03"]
[BlackClock "0:00:05"]

1. d4 {[%clk 0:03:00]}  Nf6 {[%clk 0:03:00]} 2. Nf3 {[%clk 0:03:00]}  e6 {[%clk 0:02:57]} 3. Bf4 {[%clk 0:02:58]}  d5 {[%clk 0:02:58]} 4. e3 {[%clk 0:02:57]}  Be7 {[%clk 0:02:58]} 5. c3 {[%clk 0:02:55]}  O-O {[%clk 0:02:59]} 6. Nbd2 {[%clk 0:02:54]}  c5 {[%clk 0:02:56]} 7. Bd3 {[%clk 0:02:53]}  b6 {[%clk 0:02:55]} 8. Qe2 {[%clk 0:02:50]}  Bb7 {[%clk 0:02:53]} 9. h4 {[%clk 0:02:44]}  Ne4 {[%clk 0:02:53]} 10. h5 {[%clk 0:02:44]}  Nd7 {[%clk 0:02:49]} 11. Ne5 {[%clk 0:02:33]}  Nxe5 {[%clk 0:02:32]} 12. Bxe5 {[%clk 0:02:23]}  f6 {[%clk 0:02:28]} 13. Bf4 {[%clk 0:02:20]}  e5 {[%clk 0:02:15]} 14. Bxe4 {[%clk 0:02:09]}  exf4 {[%clk 0:02:13]} 15. Bf5 {[%clk 0:02:08]}  fxe3 {[%clk 0:02:00]} 16. fxe3 {[%clk 0:02:05]}  Bd6 {[%clk 0:01:55]} 17. O-O-O {[%clk 0:02:04]}  Qe7 {[%clk 0:01:55]} 18. Qd3 {[%clk 0:02:03]}  h6 {[%clk 0:01:54]} 19. Rde1 {[%clk 0:01:49]}  Rae8 {[%clk 0:01:52]} 20. g4 {[%clk 0:01:46]}  cxd4 {[%clk 0:01:45]} 21. exd4 {[%clk 0:01:34]}  Qxe1+ {[%clk 0:01:28]} 22. Rxe1 {[%clk 0:01:35]}  Rxe1+ {[%clk 0:01:28]} 23. Kc2 {[%clk 0:01:35]}  Rfe8 {[%clk 0:01:28]} 24. Qb5 {[%clk 0:01:29]}  R8e7 {[%clk 0:01:18]} 25. Nf3 {[%clk 0:01:11]}  Bf4 {[%clk 0:01:13]} 26. Nxe1 {[%clk 0:01:10]}  Rxe1 {[%clk 0:01:07]} 27. Kb3 {[%clk 0:01:05]}  Re7 {[%clk 0:00:52]} 28. a4 {[%clk 0:01:03]}  Bc7 {[%clk 0:00:43]} 29. a5 {[%clk 0:00:59]}  Bd8 {[%clk 0:00:33]} 30. a6 {[%clk 0:00:57]}  Ba8 {[%clk 0:00:33]} 31. Qb4 {[%clk 0:00:54]}  Kf7 {[%clk 0:00:30]} 32. Qd6 {[%clk 0:00:47]}  Bc7 {[%clk 0:00:29]} 33. Bg6+ {[%clk 0:00:45]}  Kf8 {[%clk 0:00:27]} 34. Qa3 {[%clk 0:00:44]}  Bc6 {[%clk 0:00:24]} 35. Qb4 {[%clk 0:00:37]}  Bb8 {[%clk 0:00:16]} 36. Ka2 {[%clk 0:00:35]}  Bc7 {[%clk 0:00:15]} 37. c4 {[%clk 0:00:35]}  dxc4 {[%clk 0:00:11]} 38. Qxc4 {[%clk 0:00:34]}  Bd7 {[%clk 0:00:11]} 39. d5 {[%clk 0:00:32]}  Bd6 {[%clk 0:00:07]} 40. Bf5 {[%clk 0:00:32]}  Bxf5 {[%clk 0:00:03]} 41. gxf5 {[%clk 0:00:32]}  Rc7 {[%clk 0:00:04]} 42. Qe2 {[%clk 0:00:30]}  Be5 {[%clk 0:00:04]} 43. Qb5 {[%clk 0:00:29]}  Ke7 {[%clk 0:00:04]} 44. b4 {[%clk 0:00:28]}  Bd6 {[%clk 0:00:04]} 45. Kb3 {[%clk 0:00:27]}  Be5 {[%clk 0:00:04]} 46. Qd3 {[%clk 0:00:25]}  Bd6 {[%clk 0:00:02]} 47. Ka4 {[%clk 0:00:24]}  Be5 {[%clk 0:00:02]} 48. d6+ {[%clk 0:00:23]}  Bxd6 {[%clk 0:00:02]} 49. Qd5 {[%clk 0:00:23]}  Be5 {[%clk 0:00:02]} 50. Qe6+ {[%clk 0:00:21]}  Kf8 {[%clk 0:00:01]} 51. Kb5 {[%clk 0:00:21]}  Re7 {[%clk 0:00:02]} 52. Qc8+ {[%clk 0:00:20]}  Re8 {[%clk 0:00:02]} 53. Qb7 {[%clk 0:00:19]}  Re7 {[%clk 0:00:03]} 54. Qa8+ {[%clk 0:00:18]}  Kf7 {[%clk 0:00:03]} 55. Kc6 {[%clk 0:00:18]}  Rc7+ {[%clk 0:00:03]} 56. Kd5 {[%clk 0:00:19]}  Re7 {[%clk 0:00:04]} 57. Qc8 {[%clk 0:00:17]}  Rc7 {[%clk 0:00:04]} 58. Qd8 {[%clk 0:00:17]}  Re7 {[%clk 0:00:04]} 59. Kc6 {[%clk 0:00:17]}  Bf4 {[%clk 0:00:02]} 60. b5 {[%clk 0:00:15]}  Be5 {[%clk 0:00:02]} 61. Qd5+ {[%clk 0:00:14]}  Kf8 {[%clk 0:00:02]} 62. Qd8+ {[%clk 0:00:14]}  Kf7 {[%clk 0:00:03]} 63. Qc8 {[%clk 0:00:13]}  Bf4 {[%clk 0:00:04]} 64. Kd5 {[%clk 0:00:09]}  Be5 {[%clk 0:00:04]} 65. Qc4 {[%clk 0:00:07]}  Rc7 {[%clk 0:00:04]} 66. Qb3 {[%clk 0:00:06]}  Rc5+ {[%clk 0:00:04]} 67. Ke4+ {[%clk 0:00:06]}  Kf8 {[%clk 0:00:05]} 68. Qe6 {[%clk 0:00:06]}  Rc7 {[%clk 0:00:06]} 69. Qd5 {[%clk 0:00:06]}  Re7 {[%clk 0:00:06]} 70. Qa8+ {[%clk 0:00:06]}  Kf7 {[%clk 0:00:06]} 71. Kf3 {[%clk 0:00:06]}  Rc7 {[%clk 0:00:06]} 72. Qd5+ {[%clk 0:00:06]}  Kf8 {[%clk 0:00:06]} 73. Ke2 {[%clk 0:00:06]}  Re7 {[%clk 0:00:06]} 74. Kd3 {[%clk 0:00:06]}  Rc7 {[%clk 0:00:07]} 75. Qd8+ {[%clk 0:00:07]}  Kf7 {[%clk 0:00:07]} 76. Ke4 {[%clk 0:00:07]}  Re7 {[%clk 0:00:07]} 77. Kd5 {[%clk 0:00:07]}  Rc7 {[%clk 0:00:07]} 78. Qa8 {[%clk 0:00:06]}  Rc5+ {[%clk 0:00:06]} 79. Ke4 {[%clk 0:00:06]}  Rc4+ {[%clk 0:00:07]} 80. Kd3 {[%clk 0:00:06]}  Rc7 {[%clk 0:00:07]} 81. Qd5+ {[%clk 0:00:05]}  Ke7 {[%clk 0:00:06]} 82. Qg8 {[%clk 0:00:05]}  Kd6 {[%clk 0:00:04]} 83. Ke4 {[%clk 0:00:05]}  Kc5 {[%clk 0:00:04]} 84. Qd5+ {[%clk 0:00:05]}  Kb4 {[%clk 0:00:04]} 85. Kf3 {[%clk 0:00:05]}  Ka4 {[%clk 0:00:04]} 86. Ke2 {[%clk 0:00:04]}  Kb4 {[%clk 0:00:04]} 87. Kf3 {[%clk 0:00:04]}  Rc3+ {[%clk 0:00:05]} 88. Ke2 {[%clk 0:00:03]}  Rc2+ {[%clk 0:00:05]} 89. Kd1 {[%clk 0:00:03]}  Rc5 {[%clk 0:00:03]} 90. Qd7 {[%clk 0:00:03]}  Rc7 {[%clk 0:00:04]} 91. Qd5 {[%clk 0:00:03]}  Ka4 {[%clk 0:00:04]} 92. Ke2 {[%clk 0:00:03]}  Kb4 {[%clk 0:00:04]} 93. Kd1 {[%clk 0:00:03]}  Ka4 {[%clk 0:00:05]} 94. Ke2 {[%clk 0:00:03]} 1/2-1/2


[Site "https://www.chess.com"]

[Event "Titled Tuesday Blitz June 21 Late 2022"]
[White "Kanyamarala, Tarun"]
[Black "Prieto Aranguren, Alain"]
[WhiteFideId "45004714"]
[BlackFideId "2268906"]
[WhiteElo "2219"]
[BlackElo "2224"]
[Result "1-0"]
[Round "04"]
[TimeControl "180+1"]
[Date "2022.06.22"]
[WhiteClock "0:00:13"]
[BlackClock "0:00:04"]

1. e4 {[%clk 0:03:00]}  c6 {[%clk 0:02:59]} 2. c4 {[%clk 0:02:58]}  d5 {[%clk 0:03:00]} 3. exd5 {[%clk 0:02:57]}  cxd5 {[%clk 0:03:00]} 4. d4 {[%clk 0:02:57]}  Nf6 {[%clk 0:03:01]} 5. Nf3 {[%clk 0:02:56]}  g6 {[%clk 0:03:02]} 6. Nc3 {[%clk 0:02:54]}  Bg7 {[%clk 0:03:03]} 7. cxd5 {[%clk 0:02:52]}  O-O {[%clk 0:03:03]} 8. Bc4 {[%clk 0:02:51]}  Nbd7 {[%clk 0:03:02]} 9. O-O {[%clk 0:02:51]}  Nb6 {[%clk 0:03:03]} 10. Bb3 {[%clk 0:02:47]}  Nbxd5 {[%clk 0:03:02]} 11. Ne5 {[%clk 0:02:47]}  Be6 {[%clk 0:02:59]} 12. Re1 {[%clk 0:02:44]}  Rc8 {[%clk 0:02:59]} 13. Bg5 {[%clk 0:02:39]}  Qb6 {[%clk 0:02:54]} 14. Nxd5 {[%clk 0:01:55]}  Nxd5 {[%clk 0:02:47]} 15. Bxd5 {[%clk 0:01:52]}  Bxd5 {[%clk 0:02:47]} 16. Nd7 {[%clk 0:01:48]}  Qc6 {[%clk 0:02:16]} 17. Nxf8 {[%clk 0:01:47]}  Bxf8 {[%clk 0:02:00]} 18. Rc1 {[%clk 0:01:45]}  Qd7 {[%clk 0:01:59]} 19. Rxc8 {[%clk 0:01:45]}  Qxc8 {[%clk 0:01:59]} 20. Bxe7 {[%clk 0:01:44]}  Bxe7 {[%clk 0:01:53]} 21. Rxe7 {[%clk 0:01:44]}  Qf5 {[%clk 0:01:46]} 22. Qe1 {[%clk 0:01:38]}  h5 {[%clk 0:01:18]} 23. h3 {[%clk 0:01:32]}  Qg5 {[%clk 0:01:11]} 24. Re8+ {[%clk 0:01:23]}  Kh7 {[%clk 0:01:11]} 25. Qf1 {[%clk 0:01:06]}  Bc6 {[%clk 0:01:05]} 26. Re3 {[%clk 0:01:04]}  Qd5 {[%clk 0:01:03]} 27. f3 {[%clk 0:00:47]}  Qxd4 {[%clk 0:01:02]} 28. Qf2 {[%clk 0:00:47]}  Qd1+ {[%clk 0:00:50]} 29. Re1 {[%clk 0:00:47]}  Qd5 {[%clk 0:00:47]} 30. b3 {[%clk 0:00:46]}  a5 {[%clk 0:00:44]} 31. Qb2 {[%clk 0:00:32]}  h4 {[%clk 0:00:38]} 32. Qf6 {[%clk 0:00:29]}  Qd2 {[%clk 0:00:20]} 33. Qxh4+ {[%clk 0:00:29]}  Kg7 {[%clk 0:00:19]} 34. Qf2 {[%clk 0:00:29]}  Qb4 {[%clk 0:00:17]} 35. Qb2+ {[%clk 0:00:27]}  Kh7 {[%clk 0:00:17]} 36. Rd1 {[%clk 0:00:22]}  a4 {[%clk 0:00:12]} 37. Qf6 {[%clk 0:00:19]}  Qb6+ {[%clk 0:00:06]} 38. Kh1 {[%clk 0:00:16]}  Qc7 {[%clk 0:00:06]} 39. Rd8 {[%clk 0:00:14]}  Be8 {[%clk 0:00:03]} 40. Rxe8 {[%clk 0:00:13]}  Qc1+ {[%clk 0:00:03]} 41. Kh2 {[%clk 0:00:13]}  Qc7+ {[%clk 0:00:04]} 42. Qe5 {[%clk 0:00:13]} 1-0


[Site "https://www.chess.com"]